bitfinex/quotes_BTCUSD_20250813
["timestamp","ask_amount","ask_price","bid_price","bid_amount"]
[1755089736570,0.00912,120110.0,120100.0,0.88325721]
[1755089736778,0.00912,120110.0,120100.0,1.01865721]
[1755089737789,0.00912,120110.0,120100.0,0.88325721]
[1755089737997,0.00912,120110.0,120100.0,1.01861721]
[1755089738827,0.00912,120110.0,120100.0,0.88325721]
[1755089739075,0.004,120110.0,120100.0,0.88325721]
[1755089739247,0.004,120110.0,120100.0,0.89031595]
[1755089739492,0.004,120110.0,120100.0,1.13990071]
[1755089739683,0.004,120110.0,120100.0,2.94851529]
[1755089739901,0.004,120110.0,120100.0,2.94847529]
[1755089740229,0.03956642,120160.0,120150.0,0.05318294]
[1755089740230,0.03793514,120160.0,120150.0,0.05318294]
[1755089740438,0.05543509,120160.0,120150.0,0.55246794]
[1755089740973,0.05543509,120160.0,120150.0,0.57739894]
[1755089741379,0.05543509,120160.0,120150.0,0.64954207]
[1755089741608,0.05843509,120160.0,120150.0,1.09140625]
[1755089741812,0.06643539,120160.0,120150.0,0.98872625]
[1755089742183,0.06957539,120160.0,120150.0,0.98179789]
[1755089742498,0.06957539,120160.0,120150.0,0.54339789]
[1755089742869,0.06957539,120160.0,120150.0,0.67871789]
[1755089743031,0.06957539,120160.0,120150.0,0.54339789]
[1755089743236,0.05405514,120160.0,120150.0,1.05009371]
[1755089743462,0.05405514,120160.0,120150.0,0.68612871]
[1755089743673,0.05405514,120160.0,120150.0,1.05009371]
[1755089747460,0.05405514,120160.0,120150.0,1.05001371]
[1755089749831,0.05405514,120160.0,120150.0,1.04997371]
[1755089750231,0.05405514,120160.0,120150.0,0.68600871]
[1755089750480,0.05405514,120160.0,120150.0,1.04997371]
[1755089750636,0.05405514,120160.0,120150.0,0.68600871]
[1755089750818,0.05405514,120160.0,120150.0,0.91685371]
[1755089751036,0.04893514,120160.0,120150.0,0.92365193]
[1755089751241,0.04893514,120160.0,120150.0,1.05877193]
[1755089751525,0.011,120160.0,120150.0,1.22673193]
[1755089751943,0.011,120160.0,120150.0,0.92365193]
[1755089752120,0.011,120160.0,120150.0,1.06163193]
[1755089753255,0.011,120160.0,120150.0,0.92651193]
[1755089753482,0.011,120160.0,120150.0,1.06163193]
[1755089753887,0.003,120160.0,120150.0,1.05777193]
[1755089754099,0.003,120160.0,120150.0,1.05873193]
[1755089754300,0.007,120160.0,120150.0,1.05873193]
[1755089754473,0.004,120160.0,120150.0,1.05873193]
[1755089754898,0.005,120160.0,120150.0,1.06159193]
[1755089756287,0.005,120160.0,120150.0,1.05873193]
[1755089756567,0.01012,120160.0,120150.0,0.53339969]
[1755089756752,0.01012,120160.0,120150.0,0.66843969]
[1755089756979,0.01012,120160.0,120150.0,0.53339969]
[1755089757094,0.01012,120160.0,120150.0,0.66843969]
[1755089757500,0.01012,120160.0,120150.0,0.68588871]
[1755089759254,0.01012,120160.0,120150.0,0.55084871]
[1755089759461,0.39836553,120160.0,120150.0,0.0574935]
[1755089759670,0.39836553,120160.0,120150.0,0.1924935]
[1755089759892,0.39836553,120160.0,120150.0,0.5324935]
[1755089760105,0.03512,120160.0,120150.0,0.5324935]
[1755089760309,0.03512,120160.0,120150.0,0.5075625]
[1755089760488,0.03512,120160.0,120150.0,0.5075225]
[1755089760745,0.03512,120160.0,120150.0,0.5065225]
[1755089760746,0.03112,120160.0,120150.0,0.5065225]
[1755089761524,0.03012,120160.0,120150.0,0.8095225]
[1755089761708,0.03512,120160.0,120150.0,0.8105225]
[1755089761943,0.03712,120160.0,120150.0,0.8105225]
[1755089763038,0.03712,120160.0,120150.0,0.6755625]
[1755089763248,0.03712,120160.0,120150.0,0.5719225]
[1755089763681,0.03712,120160.0,120150.0,0.7068425]
[1755089764094,0.03712,120160.0,120150.0,0.5074825]
[1755089764297,0.55091239,120160.0,120150.0,0.1674825]
[1755089764527,0.54571878,120160.0,120150.0,0.00114668]
[1755089764763,0.61256649,120160.0,120150.0,0.00114668]
[1755089764986,0.38824553,120130.0,120100.0,0.05318294]
[1755089765190,0.00209,120110.0,120100.0,0.23590619]
[1755089765417,0.00209,120110.0,120100.0,0.235955]
[1755089765641,0.00515,120110.0,120100.0,0.62414053]
[1755089765856,0.00415,120110.0,120100.0,0.62414053]
[1755089766266,0.00415,120110.0,120100.0,0.96414053]
[1755089766480,0.00415,120110.0,120100.0,1.11646955]
[1755089766847,0.00415,120110.0,120100.0,0.98258955]
[1755089767048,0.00415,120110.0,120100.0,1.11746955]
[1755089767245,0.00415,120110.0,120100.0,1.15023804]
[1755089768153,0.00415,120110.0,120100.0,0.78699251]
[1755089768357,0.00415,120110.0,120100.0,1.01535804]
[1755089768561,0.00415,120110.0,120100.0,0.78699251]
[1755089768721,0.00515,120110.0,120100.0,1.15623804]
[1755089768921,0.00515,120110.0,120100.0,1.05623804]
[1755089769478,0.00515,120110.0,120100.0,0.92135804]
[1755089769625,0.00515,120110.0,120100.0,1.05619804]
[1755089769852,0.00515,120110.0,120100.0,1.05815804]
[1755089770080,0.001,120110.0,120100.0,0.92652804]
[1755089770285,0.001,120110.0,120100.0,1.06136804]
[1755089770604,0.025,120120.0,120100.0,0.71436804]
[1755089770794,0.025,120120.0,120110.0,0.36324553]
[1755089770999,0.02806,120130.0,120110.0,0.36520553]
[1755089771177,0.02806,120130.0,120120.0,0.49808553]
[1755089771381,0.03015,120130.0,120120.0,0.49808553]
[1755089771586,0.03015,120130.0,120120.0,1.14312553]
[1755089771990,0.03015,120130.0,120120.0,1.14116553]
[1755089772954,0.03115,120130.0,120120.0,1.14116553]
[1755089773157,0.03115,120130.0,120120.0,1.14216553]
[1755089773158,0.03515,120130.0,120120.0,1.14216553]
[1755089773365,0.03071,120130.0,120120.0,0.341]
[1755089773535,0.03590361,120130.0,120120.0,0.4758]
[1755089773946,0.03071,120130.0,120120.0,0.4758]
[1755089775333,0.03377,120130.0,120120.0,0.4758]
[1755089775601,0.03377,120130.0,120120.0,0.47576]
[1755089776093,0.03896361,120130.0,120120.0,0.47576]
[1755089776551,0.03896361,120130.0,120120.0,0.341]
[1755089776758,0.03896361,120130.0,120120.0,0.47576]
[1755089777254,0.03896361,120130.0,120120.0,0.341]
[1755089777460,0.03896361,120130.0,120120.0,0.47576]
[1755089777761,0.03896361,120130.0,120120.0,0.341]
[1755089777914,0.03896361,120130.0,120120.0,0.47576]
[1755089778120,0.03896361,120130.0,120120.0,0.70424553]
[1755089778305,0.03071,120130.0,120120.0,0.341]
[1755089778507,0.03071,120130.0,120120.0,0.48089]
[1755089778754,0.03071,120130.0,120120.0,0.47768]
[1755089779368,0.03071,120130.0,120120.0,0.47572]
[1755089779581,0.03071,120130.0,120120.0,0.83896553]
[1755089779937,0.03071,120130.0,120120.0,0.47572]
[1755089780325,0.03071,120130.0,120120.0,0.84092553]
[1755089781388,0.03071,120130.0,120120.0,0.83896553]
[1755089781548,0.03071,120130.0,120120.0,0.77884]
[1755089781757,0.03377,120130.0,120120.0,0.64412]
[1755089781977,0.03377,120130.0,120120.0,0.77884]
[1755089782321,0.03377,120130.0,120120.0,0.67512]
[1755089782458,0.03377,120130.0,120120.0,0.54044]
[1755089782671,0.03377,120130.0,120120.0,0.341]
[1755089782866,0.03377,120130.0,120120.0,0.47568]
[1755089783326,1.03377,120130.0,120120.0,0.47568]
[1755089785024,1.03071,120130.0,120120.0,0.47568]
[1755089785875,1.03071,120130.0,120120.0,0.47764]
[1755089786624,1.03071,120130.0,120120.0,0.48085]
[1755089788458,1.03071,120130.0,120120.0,0.47764]
[1755089789380,1.03071,120130.0,120120.0,0.47568]
[1755089790559,1.03377,120130.0,120120.0,0.47568]
[1755089791449,1.03377,120130.0,120120.0,0.44468]
[1755089791743,1.03377,120130.0,120120.0,0.77872]
[1755089791917,1.03377,120130.0,120120.0,0.64412]
[1755089792101,1.03377,120130.0,120120.0,0.77872]
[1755089793996,1.03377,120130.0,120120.0,0.67504]
[1755089794192,1.03377,120130.0,120120.0,0.54044]
[1755089794619,1.47973878,120130.0,120120.0,0.341]
[1755089794821,1.47973878,120130.0,120120.0,0.13556]
[1755089795188,1.47973878,120130.0,120120.0,0.13552]
[1755089795893,1.11649325,120130.0,120120.0,0.13552]
[1755089796075,1.47973878,120130.0,120120.0,0.13552]
[1755089796280,1.47973878,120130.0,120120.0,0.001]
[1755089796464,1.11649325,120130.0,120120.0,0.13552]
[1755089798168,1.11649325,120130.0,120120.0,0.001]
[1755089798410,1.11649325,120130.0,120120.0,0.13552]
[1755089798844,1.47973878,120130.0,120120.0,0.13552]
[1755089799438,1.47973878,120130.0,120120.0,0.13548]
[1755089800714,1.11649325,120130.0,120120.0,0.13548]
[1755089800899,1.47973878,120130.0,120120.0,0.13548]
[1755089801526,1.47973878,120130.0,120120.0,0.43864]
[1755089802210,1.11649325,120130.0,120120.0,0.4386]
[1755089802519,1.11649325,120130.0,120120.0,0.30416]
[1755089802869,1.11649325,120130.0,120120.0,0.4386]
[1755089803440,1.47973878,120130.0,120120.0,0.4386]
[1755089804219,1.47973878,120130.0,120120.0,0.20044]
[1755089804447,1.47973878,120130.0,120120.0,0.33488]
[1755089804978,1.47973878,120130.0,120120.0,0.001]
[1755089805285,1.47973878,120130.0,120120.0,0.13544]
[1755089805639,1.47973878,120130.0,120120.0,0.001]
[1755089805856,1.47973878,120130.0,120120.0,0.1354]
[1755089806056,1.11649325,120130.0,120120.0,0.1354]
[1755089806262,1.11343325,120130.0,120120.0,0.14063]
[1755089807191,1.11343325,120130.0,120120.0,0.13754]
[1755089808403,1.47667878,120130.0,120120.0,0.001]
[1755089808609,1.47973878,120130.0,120120.0,0.1354]
[1755089809376,1.47973878,120130.0,120120.0,0.13536]
[1755089809584,1.11649325,120130.0,120120.0,0.13536]
[1755089809785,1.47973878,120130.0,120120.0,0.001]
[1755089810163,1.47973878,120130.0,120120.0,0.13536]
[1755089811594,1.47973878,120130.0,120120.0,0.43852]
[1755089812212,1.47973878,120130.0,120120.0,0.30416]
[1755089812353,1.47973878,120130.0,120120.0,0.43848]
[1755089812556,1.47973878,120130.0,120120.0,0.20044]
[1755089812803,1.47973878,120130.0,120120.0,0.33476]
[1755089813182,1.47573878,120130.0,120120.0,0.33376]
[1755089813389,1.49968378,120130.0,120120.0,0.33376]
[1755089813595,1.50568378,120130.0,120120.0,0.33476]
[1755089813825,1.50568378,120130.0,120120.0,0.20044]
[1755089813989,1.50568378,120130.0,120120.0,0.33476]
[1755089814190,1.50568378,120130.0,120120.0,0.001]
[1755089814396,1.50568378,120130.0,120120.0,0.13532]
[1755089814629,1.50868378,120130.0,120120.0,0.13532]
[1755089814998,1.50868378,120130.0,120120.0,0.001]
[1755089815193,1.50868378,120130.0,120120.0,0.13528]
[1755089816504,1.14543825,120130.0,120120.0,0.13528]
[1755089819725,1.14543825,120130.0,120120.0,0.13524]
[1755089820169,1.14543825,120130.0,120120.0,0.001]
[1755089820388,1.14543825,120130.0,120120.0,0.13524]
[1755089821353,1.53368378,120130.0,120120.0,0.001]
[1755089821558,1.53368378,120130.0,120120.0,0.3042]
[1755089822284,1.59421378,120130.0,120120.0,0.4384]
[1755089824348,1.59421378,120130.0,120120.0,0.43836]
[1755089824805,1.62737116,120130.0,120120.0,0.43836]
[1755089825129,1.59421378,120130.0,120120.0,0.3042]
[1755089825358,1.53368378,120130.0,120120.0,0.43836]
[1755089825584,1.14543825,120130.0,120120.0,0.20048]
[1755089825812,1.14237825,120130.0,120120.0,0.20247]
[1755089825972,1.14237825,120130.0,120120.0,0.20547]
[1755089826207,1.14028825,120130.0,120120.0,0.14015]
[1755089826621,1.14028825,120130.0,120120.0,0.00599]
[1755089826622,1.50565378,120130.0,120120.0,0.00599]
[1755089826802,1.50565378,120130.0,120120.0,0.13512]
[1755089828216,1.50565378,120130.0,120120.0,0.001]
[1755089828424,1.50565378,120130.0,120120.0,0.13512]
[1755089829102,1.50565378,120130.0,120120.0,0.001]
[1755089829406,1.50565378,120130.0,120120.0,0.13512]
[1755089829937,1.50867378,120130.0,120120.0,0.13512]
[1755089830881,1.50867378,120130.0,120120.0,0.001]
[1755089830882,1.5511228,120130.0,120120.0,0.001]
[1755089831128,1.5511228,120130.0,120120.0,0.13508]
[1755089831550,1.9161228,120130.0,120120.0,0.43828]
[1755089831759,1.9131228,120130.0,120120.0,0.43828]
[1755089831965,1.9191228,120130.0,120120.0,0.3042]
[1755089832211,1.9191228,120130.0,120120.0,0.43828]
[1755089832640,1.9191228,120130.0,120120.0,0.43728]
[1755089832865,1.9131228,120130.0,120120.0,0.3032]
[1755089833084,1.9191228,120130.0,120120.0,0.3042]
[1755089833276,1.9191228,120130.0,120120.0,0.43828]
[1755089835482,1.53087727,120130.0,120120.0,0.3042]
[1755089835692,1.8941228,120130.0,120120.0,0.3042]
[1755089835832,1.9191228,120130.0,120120.0,0.3042]
[1755089836032,1.8941228,120130.0,120120.0,0.43824]
[1755089836688,1.8705028,120130.0,120120.0,0.43824]
[1755089837044,1.8705028,120130.0,120120.0,0.3042]
[1755089837045,1.84865378,120130.0,120120.0,0.3042]
[1755089837257,1.87365378,120130.0,120120.0,0.43824]
[1755089837685,1.87667378,120130.0,120120.0,0.43824]
[1755089837826,1.87365378,120130.0,120120.0,0.33651]
[1755089838232,1.87365378,120130.0,120120.0,0.20247]
[1755089838431,1.87365378,120130.0,120120.0,0.33452]
[1755089839164,1.87365378,120130.0,120120.0,0.20048]
[1755089839389,1.87667378,120130.0,120120.0,0.33448]
[1755089840155,1.85167378,120130.0,120120.0,0.001]
[1755089840316,1.51342825,120130.0,120120.0,0.135]
[1755089840548,1.87667378,120130.0,120120.0,0.001]
[1755089840965,1.87911378,120130.0,120120.0,0.001]
[1755089841386,1.85411378,120130.0,120120.0,0.135]
[1755089841553,1.87911378,120130.0,120120.0,0.43824]
[1755089841754,1.87609378,120130.0,120120.0,0.44023]
[1755089841993,1.84897378,120130.0,120120.0,0.44323]
[1755089842189,1.87397378,120130.0,120120.0,0.30923]
[1755089842525,1.87608378,120130.0,120120.0,0.44319]
[1755089842768,1.14572825,120130.0,120120.0,0.44319]
[1755089842965,1.14572825,120130.0,120120.0,0.30923]
[1755089843200,1.50897378,120130.0,120120.0,0.44319]
[1755089843397,1.50985378,120130.0,120120.0,0.44019]
[1755089843597,1.14660825,120130.0,120120.0,0.44019]
[1755089843979,1.14572825,120130.0,120120.0,0.20551]
[1755089844241,1.50897378,120130.0,120120.0,0.20551]
[1755089844369,1.50897378,120130.0,120120.0,0.33947]
[1755089844580,1.50897378,120130.0,120120.0,0.20551]
[1755089844800,1.14572825,120130.0,120120.0,0.33947]
[1755089845387,1.13972825,120130.0,120120.0,0.33847]
[1755089845644,1.13972825,120130.0,120120.0,0.33947]
[1755089845945,1.14472825,120130.0,120120.0,0.33947]
[1755089846146,1.13872825,120130.0,120120.0,0.33947]
[1755089846443,1.14172825,120130.0,120120.0,0.33947]
[1755089846645,1.14172825,120130.0,120120.0,0.13995]
[1755089847444,1.14349825,120130.0,120120.0,0.13991]
[1755089848164,1.14349825,120130.0,120120.0,0.13691]
[1755089848689,1.50674378,120130.0,120120.0,0.00299]
[1755089848846,1.50497378,120130.0,120120.0,0.13991]
[1755089849516,1.50676378,120130.0,120120.0,0.00599]
[1755089849723,1.14351825,120130.0,120120.0,0.13687]
[1755089849920,1.14650825,120130.0,120120.0,0.001]
[1755089850123,1.50975378,120130.0,120120.0,0.13488]
[1755089850453,1.53475378,120130.0,120120.0,0.13488]
[1755089850850,1.5522028,120130.0,120120.0,0.001]
[1755089851056,1.5522028,120130.0,120120.0,0.13488]
[1755089851561,1.5522028,120130.0,120120.0,0.43812]
[1755089851777,1.99897007,120130.0,120120.0,0.10372]
[1755089852045,1.9767328,120130.0,120120.0,0.43712]
[1755089852226,1.9767328,120130.0,120120.0,0.30324]
[1755089852543,1.9767328,120130.0,120120.0,0.43712]
[1755089852929,1.9737328,120130.0,120120.0,0.43712]
[1755089853129,1.9747328,120130.0,120120.0,0.43812]
[1755089853541,1.9837328,120130.0,120120.0,0.43912]
[1755089853908,0.02362,120110.0,120100.0,4.881e-05]
[1755089854112,0.47693239,120110.0,120100.0,0.30530881]
[1755089854317,0.47173878,120110.0,120100.0,0.30837881]
[1755089855139,0.47173878,120110.0,120100.0,0.44225881]
[1755089855351,0.47173878,120110.0,120100.0,0.30530881]
[1755089855565,0.47173878,120110.0,120100.0,0.43918881]
[1755089855758,0.50069278,120110.0,120100.0,0.43918881]
[1755089856205,0.50469278,120110.0,120100.0,0.43918881]
[1755089856386,0.50469278,120110.0,120100.0,0.33372839]
[1755089856621,0.50769278,120110.0,120100.0,0.33372839]
[1755089857155,0.14444725,120110.0,120100.0,0.19984839]
[1755089857362,0.14664086,120110.0,120100.0,0.00032839]
[1755089857570,0.50988639,120110.0,120100.0,0.00032839]
[1755089857807,0.50469278,120110.0,120100.0,0.13416839]
[1755089858764,0.50254278,120110.0,120100.0,0.13723839]
[1755089859006,0.47892278,120110.0,120100.0,0.00339839]
[1755089859217,0.13929725,120110.0,120100.0,0.13723839]
[1755089859421,0.50773639,120110.0,120100.0,0.13723839]
[1755089859631,0.50773639,120110.0,120100.0,0.00339839]
[1755089859632,0.13929725,120110.0,120100.0,0.00339839]
[1755089859849,0.14449086,120110.0,120100.0,0.00339839]
[1755089860046,0.14449086,120110.0,120100.0,0.13723839]
[1755089860476,0.50773639,120110.0,120100.0,0.13723839]
[1755089860675,0.50254278,120110.0,120100.0,0.13723839]
[1755089861289,0.13929725,120110.0,120100.0,0.13749967]
[1755089861485,0.50254278,120110.0,120100.0,0.44077967]
[1755089862314,0.13929725,120110.0,120100.0,0.44077967]
[1755089862516,0.11953686,120110.0,120100.0,0.44073967]
[1755089862825,0.11693508,120110.0,120100.0,0.44073967]
[1755089863421,0.11693508,120110.0,120100.0,0.20317967]
[1755089863623,0.09331508,120110.0,120100.0,0.33697967]
[1755089863827,0.09072325,120110.0,120100.0,0.33697967]
[1755089864040,0.11434325,120110.0,120100.0,0.13745967]
[1755089864255,0.09072325,120110.0,120100.0,0.13745967]
[1755089864528,0.11434325,120110.0,120100.0,0.13745967]
[1755089865812,0.11434325,120110.0,120100.0,0.00365967]
[1755089866017,0.11434325,120110.0,120100.0,0.13741967]
[1755089868367,0.11649325,120110.0,120100.0,0.00026128]
[1755089868571,0.11649325,120110.0,120100.0,0.13604128]
[1755089869600,0.11649325,120110.0,120100.0,0.13911128]
[1755089869758,0.11649325,120110.0,120100.0,0.00535128]
[1755089870144,0.11434325,120110.0,120100.0,0.13911128]
[1755089871280,0.11434325,120110.0,120100.0,0.00535128]
[1755089871676,0.11434325,120110.0,120100.0,0.30863128]
[1755089871853,0.11434325,120110.0,120100.0,0.44235128]
[1755089873486,0.11434325,120110.0,120100.0,0.33855128]
[1755089876290,0.11434325,120110.0,120100.0,0.13903128]
[1755089878459,0.11434325,120110.0,120100.0,0.13899128]
[1755089879681,0.11434325,120110.0,120100.0,0.00535128]
[1755089879809,0.11434325,120110.0,120100.0,0.13899128]
[1755089881548,0.11434325,120110.0,120100.0,0.44223128]
[1755089881813,0.03162,120110.0,120100.0,0.67183681]
[1755089882171,0.03162,120110.0,120100.0,0.80543681]
[1755089882374,0.03162,120110.0,120100.0,0.56811681]
[1755089882583,0.03162,120110.0,120100.0,0.70171681]
[1755089882795,0.02762,120110.0,120100.0,0.70171681]
[1755089883231,0.02462,120110.0,120100.0,0.70171681]
[1755089883441,0.02462,120110.0,120100.0,0.36859681]
[1755089883653,0.02462,120110.0,120100.0,0.00535128]
[1755089884475,0.02462,120110.0,120100.0,0.13895128]
[1755089884850,0.02462,120110.0,120100.0,0.34535128]
[1755089885070,0.02462,120110.0,120100.0,0.47891128]
[1755089885462,0.02462,120110.0,120100.0,0.34535128]
[1755089885692,0.02462,120110.0,120100.0,0.47891128]
[1755089886406,0.02462,120110.0,120100.0,0.13891128]
[1755089886645,0.02462,120110.0,120100.0,0.34535128]
[1755089886856,0.02462,120110.0,120100.0,0.47891128]
[1755089887691,1.01712313,120110.0,120100.0,0.47891128]
[1755089888158,1.01712313,120110.0,120100.0,0.34535128]
[1755089888364,1.01712313,120110.0,120100.0,0.47887128]
[1755089891497,1.01712313,120110.0,120100.0,0.78207128]
[1755089891896,1.01712313,120110.0,120100.0,0.64855128]
[1755089892260,1.01712313,120110.0,120100.0,0.78203128]
[1755089894288,1.01712313,120110.0,120100.0,0.67831128]
[1755089894494,1.01712313,120110.0,120100.0,0.47883128]
[1755089898167,1.01928313,120110.0,120100.0,0.47883128]
[1755089898361,1.01928313,120110.0,120100.0,0.34026128]
[1755089898362,1.02250313,120110.0,120100.0,0.34026128]
[1755089898571,1.48855996,120110.0,120100.0,0.47366128]
[1755089898801,1.10522638,120110.0,120100.0,0.47366128]
[1755089899671,1.10522638,120110.0,120100.0,0.00026128]
[1755089899672,1.48755996,120110.0,120100.0,0.00026128]
[1755089899926,1.48955996,120110.0,120100.0,0.00126128]
[1755089900116,1.48955996,120110.0,120100.0,0.13466128]
[1755089900316,1.49055996,120110.0,120100.0,0.13466128]
[1755089900699,1.48855996,120110.0,120100.0,0.13366128]
[1755089900902,1.48755996,120110.0,120100.0,0.13366128]
[1755089901214,1.49255996,120110.0,120100.0,0.13466128]
[1755089901409,1.49255996,120110.0,120100.0,0.23838128]
[1755089901615,1.49255996,120110.0,120100.0,0.43786128]
[1755089902953,1.49255996,120110.0,120100.0,0.30446128]
[1755089903106,1.49255996,120110.0,120100.0,0.43782128]
[1755089903302,1.10922638,120110.0,120100.0,0.43782128]
[1755089903946,1.49255996,120110.0,120100.0,0.43782128]
[1755089904297,1.49255996,120110.0,120100.0,0.20074128]
[1755089904501,1.49255996,120110.0,120100.0,0.33410128]
[1755089904757,1.49255996,120110.0,120100.0,0.20074128]
[1755089904961,1.49255996,120110.0,120100.0,0.33410128]
[1755089905838,1.10922638,120110.0,120100.0,0.00341128]
[1755089906039,1.02112313,120110.0,120100.0,0.39011928]
[1755089906358,1.02112313,120110.0,120100.0,0.38988486]
[1755089906554,1.02112313,120110.0,120100.0,0.00655128]
[1755089906737,1.02112313,120110.0,120100.0,0.13991128]
[1755089906946,1.02328313,120110.0,120100.0,0.00341128]
[1755089907301,1.02650313,120110.0,120100.0,0.13673128]
[1755089908333,1.10922638,120110.0,120100.0,0.00126128]
[1755089908566,0.00117872,120100.0,120090.0,0.05318294]
[1755089908765,0.09125558,120100.0,120090.0,0.1887017]
[1755089909506,0.11788558,120100.0,120090.0,0.34004876]
[1755089909708,0.50121916,120100.0,120090.0,0.13336876]
[1755089909839,0.11369197,120100.0,120090.0,0.13336876]
[1755089910075,0.11888558,120100.0,120090.0,0.13336876]
[1755089910279,0.12088558,120100.0,120090.0,0.13432876]
[1755089910477,0.50421916,120100.0,120090.0,0.00104876]
[1755089910793,0.11268197,120100.0,120090.0,0.00104876]
[1755089910939,0.11268197,120100.0,120090.0,0.13648876]
[1755089910940,0.11787558,120100.0,120090.0,0.13648876]
[1755089911589,0.11787558,120100.0,120090.0,0.43968876]
[1755089912692,0.12088558,120100.0,120090.0,0.30640876]
[1755089913022,0.12088558,120100.0,120090.0,0.20052876]
[1755089913177,0.50421916,120100.0,120090.0,0.33380876]
[1755089913403,0.49902555,120100.0,120090.0,0.20052876]
[1755089913613,0.49902555,120100.0,120090.0,0.33380876]
[1755089914493,0.49802555,120100.0,120090.0,0.33380876]
[1755089915935,0.49802555,120100.0,120090.0,0.33376876]
[1755089916133,0.49602555,120100.0,120090.0,0.13328876]
[1755089916702,0.50102555,120100.0,120090.0,0.13328876]
[1755089916905,0.52598155,120100.0,120090.0,0.13328876]
[1755089917279,0.52898155,120100.0,120090.0,0.13328876]
[1755089920534,0.14564797,120100.0,120090.0,0.13328876]
[1755089920892,0.15084158,120100.0,120090.0,4.876e-05]
[1755089921095,0.15084158,120100.0,120090.0,0.13328876]
[1755089921302,0.53417516,120100.0,120090.0,0.13328876]
[1755089921505,0.52898155,120100.0,120090.0,0.43660876]
[1755089922241,0.52898155,120100.0,120090.0,0.30336876]
[1755089922618,0.52898155,120100.0,120090.0,0.43656876]
[1755089923127,0.52898155,120100.0,120090.0,0.33280876]
[1755089923942,0.14047797,120100.0,120090.0,0.33496876]
[1755089924107,0.14567158,120100.0,120090.0,0.20486876]
[1755089924312,0.14784158,120100.0,120090.0,0.33496876]
[1755089924829,0.12071558,120100.0,120090.0,0.00530876]
[1755089925028,0.11552197,120100.0,120090.0,0.00530876]
[1755089925259,0.12071558,120100.0,120090.0,0.00530876]
[1755089925598,0.12071558,120100.0,120090.0,0.13846876]
[1755089926279,0.12071558,120100.0,120090.0,0.00530876]
[1755089926429,0.12071558,120100.0,120090.0,0.13846876]
[1755089928190,0.12071558,120100.0,120090.0,0.00530876]
[1755089928417,0.12071558,120100.0,120090.0,0.13846876]
[1755089929293,0.12071558,120100.0,120090.0,0.00530876]
[1755089929504,0.12071558,120100.0,120090.0,0.13842876]
[1755089931475,0.12071558,120100.0,120090.0,0.44174876]
[1755089936362,0.12288558,120100.0,120090.0,0.44174876]
[1755089936591,0.50922916,120100.0,120090.0,0.33264876]
[1755089936714,0.50403555,120100.0,120090.0,0.13308876]
[1755089937118,0.12070197,120100.0,120090.0,0.13308876]
[1755089937318,0.50922916,120100.0,120090.0,0.13308876]
[1755089937518,0.50403555,120100.0,120090.0,0.13308876]
[1755089938959,0.12070197,120100.0,120090.0,0.13308876]
[1755089939160,0.50922916,120100.0,120090.0,0.13308876]
[1755089939469,0.50403555,120100.0,120090.0,0.13308876]
[1755089941128,0.50403555,120100.0,120060.0,0.41156989]
[1755089941129,0.26312124,120080.0,120060.0,0.41156989]
[1755089941351,0.26312124,120070.0,120060.0,0.75156989]
[1755089941571,0.26312124,120070.0,120060.0,1.05681989]
[1755089942491,0.26312124,120070.0,120060.0,1.18977989]
[1755089942755,0.26312124,120070.0,120060.0,0.80644631]
[1755089942973,0.26312124,120070.0,120060.0,0.70268631]
[1755089943367,0.28874124,120070.0,120060.0,0.70268631]
[1755089943718,0.28874124,120070.0,120060.0,0.56972631]
[1755089943925,0.28974124,120070.0,120060.0,0.50312631]
[1755089944134,0.28974124,120070.0,120060.0,0.37020631]
[1755089944333,0.28974124,120070.0,120060.0,0.50312631]
[1755089946972,0.02662,120070.0,120060.0,0.50312631]
[1755089947178,0.03181361,120070.0,120060.0,0.50312631]
[1755089947601,0.03181361,120070.0,120060.0,0.03020631]
[1755089947602,0.03393361,120070.0,120060.0,0.03020631]
[1755089947766,0.03690361,120070.0,120060.0,0.13489]
[1755089947902,0.11453686,120070.0,120060.0,0.38843358]
[1755089948259,0.11453686,120070.0,120060.0,0.52131358]
[1755089948825,0.03181361,120070.0,120060.0,0.52131358]
[1755089949068,0.003,120070.0,120060.0,0.38843358]
[1755089949279,0.02662,120070.0,120060.0,0.58005358]
[1755089949991,0.02662,120070.0,120060.0,0.60490133]
[1755089951138,0.02662,120070.0,120060.0,0.94490133]
[1755089951561,0.02662,120070.0,120060.0,1.24818133]
[1755089951758,0.003,120070.0,120060.0,1.24818133]
[1755089952001,0.02662,120070.0,120060.0,1.24818133]
[1755089952541,0.02662,120070.0,120060.0,1.11604927]
[1755089952678,0.02662,120070.0,120060.0,1.24888927]
[1755089952896,0.003,120070.0,120060.0,1.24888927]
[1755089953110,0.02662,120070.0,120060.0,1.24888927]
[1755089954726,0.003,120070.0,120060.0,1.14512927]
[1755089954951,0.003,120070.0,120060.0,0.94486133]
[1755089955373,0.003,120070.0,120060.0,1.02758458]
[1755089957522,0.003,120070.0,120060.0,1.02750458]
[1755089960745,0.003,120070.0,120060.0,0.89474458]
[1755089960946,0.003,120070.0,120060.0,1.02746458]
[1755089961244,0.003,120070.0,120060.0,1.02842374]
[1755089961556,0.003,120070.0,120060.0,1.43546374]
[1755089961764,0.003,120070.0,120060.0,1.45291276]
[1755089961913,0.003,120070.0,120060.0,1.34915276]
[1755089962702,0.003,120070.0,120060.0,1.11267276]
[1755089962828,0.002,120070.0,120060.0,1.11267276]
[1755089963039,0.2663,120080.0,120070.0,0.11534872]
[1755089963213,0.2663,120080.0,120070.0,0.58650555]
[1755089963827,0.2663,120080.0,120070.0,0.58751417]
[1755089965191,0.2663,120080.0,120070.0,0.61445917]
[1755089965542,0.2673,120080.0,120070.0,0.61645917]
[1755089965804,0.2673,120080.0,120070.0,0.74909917]
[1755089966637,0.2673,120080.0,120070.0,0.74809055]
[1755089967589,0.2673,120080.0,120070.0,1.08809055]
[1755089967799,0.001,120080.0,120070.0,1.08809055]
[1755089970815,0.001,120080.0,120070.0,0.95545055]
[1755089971118,0.001,120080.0,120070.0,1.08801055]
[1755089971494,0.001,120080.0,120070.0,1.49497055]
[1755089971709,0.001,120080.0,120070.0,1.36241055]
[1755089971870,0.001,120080.0,120070.0,1.49497055]
[1755089972304,0.001,120080.0,120070.0,1.28753055]
[1755089973769,0.001,120080.0,120070.0,1.08797055]
[1755089975175,0.001,120080.0,120070.0,1.08484055]
[1755089975532,0.001,120080.0,120070.0,1.08787055]